[Event "2. Itzehoer Schach Open"]
[Site "Itzehoe, Germany"]
[Date "2023.04.29"]
[Round "1.32"]
[White "Baumann, Simon"]
[Black "Knudsen, Max Leon"]
[Result "1-0"]
[TimeControl "90 min / 40 Züge + 30 min + 30 Sek pro Zug"]
[WhiteElo "1289"]
[BlackElo "931"]

1. e4 {[%clk 01:30:59]} {[%emt 00:14:16]} g6 {[%clk 01:30:53]} {[%emt
00:00:07]} 2. d4 {[%clk 01:31:23]} {[%emt 00:00:06]} Bg7 {[%clk 01:31:16]}
{[%emt 00:00:06]} 3. Nf3 {[%clk 01:31:28]} {[%emt 00:00:25]} d6 {[%clk
01:31:36]} {[%emt 00:00:11]} 4. Be3 {[%clk 01:31:15]} {[%emt 00:00:44]} a6
{[%clk 01:31:33]} {[%emt 00:00:32]} 5. Be2 {[%clk 01:31:36]} {[%emt 00:00:10]}
c5 {[%clk 01:31:21]} {[%emt 00:00:41]} 6. Nc3 {[%clk 01:31:11]} {[%emt
00:00:56]} Qb6 {[%clk 01:30:36]} {[%emt 00:01:14]} 7. Rb1 {[%clk 01:30:40]}
{[%emt 00:01:02]} Nf6 {[%clk 01:29:23]} {[%emt 00:01:42]} 8. Qd2 {[%clk
01:30:22]} {[%emt 00:00:49]} O-O {[%clk 01:28:40]} {[%emt 00:01:12]} 9. O-O
{[%clk 01:29:39]} {[%emt 00:01:14]} Qc7 {[%clk 01:28:21]} {[%emt 00:00:49]} 10.
Bh6 {[%clk 01:29:12]} {[%emt 00:00:58]} Bxh6 {[%clk 01:27:50]} {[%emt
00:00:59]} 11. Qxh6 {[%clk 01:29:29]} {[%emt 00:00:14]} Ng4 {[%clk 01:27:43]}
{[%emt 00:00:36]} 12. Qh4 {[%clk 01:29:08]} {[%emt 00:00:45]} cxd4 {[%clk
01:26:46]} {[%emt 00:01:33]} 13. Nxd4 {[%clk 01:28:15]} {[%emt 00:01:24]} d5
{[%clk 01:26:39]} {[%emt 00:00:38]} 14. Bxg4 {[%clk 01:28:27]} {[%emt
00:00:17]} Bxg4 {[%clk 01:26:45]} {[%emt 00:00:24]} 15. Qxg4 {[%clk 01:28:43]}
{[%emt 00:00:14]} Nd7 {[%clk 01:26:53]} {[%emt 00:00:22]} 16. Nxd5 {[%clk
01:28:37]} {[%emt 00:00:36]} Qd6 {[%clk 01:26:35]} {[%emt 00:00:48]} 17. c3
{[%clk 01:27:30]} {[%emt 00:01:39]} e6 {[%clk 01:26:46]} {[%emt 00:00:18]} 18.
Ne3 {[%clk 01:27:09]} {[%emt 00:00:52]} Nf6 {[%clk 01:26:47]} {[%emt 00:00:29]}
19. Qf3 {[%clk 01:25:38]} {[%emt 00:01:58]} e5 {[%clk 01:26:40]} {[%emt
00:00:40]} 20. Nb3 {[%clk 01:25:20]} {[%emt 00:00:49]} Rad8 {[%clk 01:25:09]}
{[%emt 00:01:59]} 21. Rbd1 {[%clk 01:25:05]} {[%emt 00:00:45]} Qc6 {[%clk
01:24:41]} {[%emt 00:00:57]} 22. Nd5 {[%clk 01:24:03]} {[%emt 00:01:33]} Nxd5
{[%clk 01:24:38]} {[%emt 00:00:32]} 23. exd5 {[%clk 01:23:48]} {[%emt
00:00:46]} e4 {[%clk 01:24:46]} {[%emt 00:00:22]} 24. Qxe4 {[%clk 01:22:59]}
{[%emt 00:01:19]} Rde8 {[%clk 01:24:38]} {[%emt 00:00:38]} 25. dxc6 {[%clk
01:22:40]} {[%emt 00:00:49]} Rxe4 {[%clk 01:24:51]} {[%emt 00:00:17]} 26. c7
{[%clk 01:22:32]} {[%emt 00:00:38]} Ree8 {[%clk 01:24:32]} {[%emt 00:00:49]} 27.
Rd7 {[%clk 01:22:41]} {[%emt 00:00:21]} Rc8 {[%clk 01:24:32]} {[%emt 00:00:30]}
28. Rfd1 {[%clk 01:22:49]} {[%emt 00:00:22]} b5 {[%clk 01:24:22]} {[%emt
00:00:40]} 29. h3 {[%clk 01:23:00]} {[%emt 00:00:20]} f5 {[%clk 01:24:14]}
{[%emt 00:00:38]} 30. Nc5 {[%clk 01:23:02]} {[%emt 00:00:27]} Rfe8 {[%clk
01:23:24]} {[%emt 00:01:20]} 31. Nxa6 {[%clk 01:23:06]} {[%emt 00:00:26]} Kf8
{[%clk 01:23:02]} {[%emt 00:00:50]} 32. Rd8 {[%clk 01:22:36]} {[%emt 00:01:01]}
Ke7 {[%clk 01:22:53]} {[%emt 00:00:37]} 33. R1d7+ {[%clk 01:22:44]} {[%emt
00:00:24]} Ke6 {[%emt 00:01:20]} 34. Rxc8 {[%clk 01:22:15]} Kxd7 {[%clk
01:21:44]} {[%emt 00:01:47]} 35. Rxe8 {[%clk 01:22:36]} {[%emt 00:00:10]} Kxe8
{[%clk 01:22:05]} {[%emt 00:00:08]} 36. c8=Q+ {[%clk 01:22:52]} {[%emt
00:00:15]} Kf7 {[%clk 01:22:14]} {[%emt 00:00:20]} 37. Qd7+ {[%clk 01:23:16]}
{[%emt 00:00:07]} Kf6 {[%clk 01:22:31]} {[%emt 00:00:12]} 38. Qe8 {[%clk
01:23:27]} {[%emt 00:00:20]} Kg5 {[%clk 01:22:26]} {[%emt 00:00:34]} 39. Qe5
{[%clk 01:23:38]} {[%emt 00:00:18]} b4 {[%clk 01:22:37]} {[%emt 00:00:21]} 40.
f4+ {[%clk 01:23:45]} {[%emt 00:00:23]} Kh5 {[%clk 01:22:48]} {[%emt 00:00:18]}
41. Qf6 {[%clk 01:21:59]} {[%emt 00:02:17]} b3 {[%clk 01:22:12]} {[%emt
00:01:07]} 42. Qg5# {[%clk 01:21:37]} {[%emt 00:00:16]} 1-0

[Event "2. Itzehoer Schach Open"]
[Site "Itzehoe, Germany"]
[Date "2023.04.29"]
[Round "1.2"]
[White "Kuegel, Tobias"]
[Black "Thomas, Jeremy"]
[Result "1-0"]
[TimeControl "90 min / 40 Züge + 30 min + 30 Sek pro Zug"]
[WhiteElo "2332"]
[BlackElo "1894"]

1. e4 {[%clk 01:01:45]} {[%emt 00:29:14]} c5 {[%clk 01:30:15]} {[%emt
00:00:45]} 2. Ne2 {[%clk 01:01:48]} {[%emt 00:00:13]} d6 {[%clk 01:23:23]}
{[%emt 00:07:36]} 3. d4 {[%clk 01:01:39]} {[%emt 00:00:39]} cxd4 {[%clk
01:23:47]} {[%emt 00:00:06]} 4. Nxd4 {[%clk 01:02:02]} {[%emt 00:00:06]} Nf6
{[%clk 01:24:13]} {[%emt 00:00:05]} 5. f3 {[%clk 01:02:27]} {[%emt 00:00:05]}
e5 {[%clk 01:22:12]} {[%emt 00:02:31]} 6. Nb3 {[%clk 01:01:35]} {[%emt
00:01:21]} d5 {[%clk 01:22:13]} {[%emt 00:00:29]} 7. Bg5 {[%clk 01:01:50]}
{[%emt 00:00:14]} d4 {[%clk 01:14:59]} {[%emt 00:07:45]} 8. c3 {[%clk
01:01:42]} {[%emt 00:00:39]} Nc6 {[%clk 01:13:08]} {[%emt 00:02:21]} 9. cxd4
{[%clk 00:58:27]} {[%emt 00:03:44]} Bb4+ {[%clk 01:12:48]} {[%emt 00:00:50]} 10.
Bd2 {[%clk 00:58:38]} {[%emt 00:00:19]} Nxe4 {[%clk 01:10:12]} {[%emt
00:03:07]} 11. Bxb4 {[%clk 00:57:58]} {[%emt 00:01:10]} Qh4+ {[%clk 01:10:13]}
{[%emt 00:00:29]} 12. g3 {[%clk 00:58:22]} {[%emt 00:00:06]} Nxg3 {[%clk
01:10:28]} {[%emt 00:00:14]} 13. hxg3 {[%clk 00:58:40]} {[%emt 00:00:12]} Qxg3+
{[%clk 01:01:18]} {[%emt 00:09:40]} 14. Kd2 {[%clk 00:55:13]} {[%emt 00:03:56]}
Nxb4 {[%clk 00:59:58]} {[%emt 00:01:51]} 15. Qe2 {[%clk 00:47:46]} {[%emt
00:07:56]} Be6 {[%clk 00:51:17]} {[%emt 00:09:11]} 16. Qxe5 {[%clk 00:41:35]}
{[%emt 00:06:41]} Qxf3 {[%clk 00:49:00]} {[%emt 00:02:47]} 17. Bb5+ {[%clk
00:39:32]} {[%emt 00:02:33]} Nc6 {[%clk 00:48:30]} {[%emt 00:01:01]} 18. Nc3
{[%clk 00:36:22]} {[%emt 00:03:39]} O-O-O {[%clk 00:48:22]} {[%emt 00:00:38]}
19. Bxc6 {[%clk 00:35:28]} {[%emt 00:01:25]} bxc6 {[%clk 00:47:39]} {[%emt
00:01:13]} 20. Raf1 {[%clk 00:32:30]} {[%emt 00:03:27]} Qg2+ {[%clk 00:46:13]}
{[%emt 00:01:56]} 21. Kc1 {[%clk 00:28:58]} {[%emt 00:04:02]} g6 {[%clk
00:38:51]} {[%emt 00:07:53]} 22. Rhg1 {[%clk 00:26:13]} {[%emt 00:03:15]} Qh3
{[%clk 00:38:59]} {[%emt 00:00:19]} 23. Qc5 {[%clk 00:23:50]} {[%emt 00:02:54]}
Bf5 {[%clk 00:36:35]} {[%emt 00:02:55]} 24. Rxf5 {[%clk 00:19:50]} {[%emt
00:04:30]} gxf5 {[%clk 00:29:13]} {[%emt 00:07:52]} 25. Qxc6+ {[%clk 00:20:17]}
{[%emt 00:00:03]} Kb8 {[%clk 00:29:24]} {[%emt 00:00:19]} 26. Nc5 {[%clk
00:20:35]} {[%emt 00:00:12]} Qh6+ {[%clk 00:24:05]} {[%emt 00:05:49]} 27. Qxh6
{[%clk 00:19:09]} {[%emt 00:01:27]} 1-0

[Event "2. Itzehoer Schach Open"]
[Site "Itzehoe, Germany"]
[Date "2023.04.29"]
[Round "1.13"]
[White "Spieker, Hans-Joachim"]
[Black "Martin, Dennis"]
[Result "0-1"]
[TimeControl "90 min / 40 Züge + 30 min + 30 Sek pro Zug"]
[WhiteElo "1747"]
[BlackElo "2012"]

1. Nf3 {[%clk 01:30:58]} {[%emt 00:00:01]} d5 {[%clk 01:30:59]} {[%emt
00:00:02]} 2. c4 {[%clk 01:31:20]} {[%emt 00:00:08]} d4 {[%clk 01:31:18]}
{[%emt 00:00:12]} 3. b4 {[%clk 01:31:45]} {[%emt 00:00:04]} a5 {[%clk
01:31:29]} {[%emt 00:00:18]} 4. Bb2 {[%clk 01:31:08]} {[%emt 00:01:07]} d3
{[%clk 01:31:35]} {[%emt 00:00:24]} 5. exd3 {[%clk 01:29:36]} {[%emt 00:02:02]}
axb4 {[%clk 01:32:03]} {[%emt 00:00:03]} 6. Be2 {[%clk 01:28:33]} {[%emt
00:01:32]} Nf6 {[%clk 01:31:49]} {[%emt 00:00:44]} 7. O-O {[%clk 01:28:08]}
{[%emt 00:00:56]} e6 {[%clk 01:31:53]} {[%emt 00:00:26]} 8. a3 {[%clk
01:23:41]} {[%emt 00:04:57]} Nc6 {[%clk 01:31:32]} {[%emt 00:00:50]} 9. axb4
{[%clk 01:22:08]} {[%emt 00:02:04]} Rxa1 {[%clk 01:31:57]} {[%emt 00:00:04]} 10.
Bxa1 {[%clk 01:22:25]} {[%emt 00:00:12]} Bxb4 {[%clk 01:32:22]} {[%emt
00:00:06]} 11. Qb3 {[%clk 01:20:17]} {[%emt 00:02:38]} Bd6 {[%clk 01:26:35]}
{[%emt 00:06:17]} 12. d4 {[%clk 01:18:07]} {[%emt 00:02:40]} Be7 {[%clk
01:23:38]} {[%emt 00:03:28]} 13. Na3 {[%clk 01:14:27]} {[%emt 00:04:09]} O-O
{[%clk 01:23:17]} {[%emt 00:00:51]} 14. Nb5 {[%clk 01:13:51]} {[%emt 00:01:06]}
b6 {[%clk 01:22:15]} {[%emt 00:01:32]} 15. Ne5 {[%clk 01:13:01]} {[%emt
00:01:20]} Bb7 {[%clk 01:21:21]} {[%emt 00:01:24]} 16. Bf3 {[%clk 01:10:47]}
{[%emt 00:02:44]} Na5 {[%clk 01:21:36]} {[%emt 00:00:16]} 17. Qc2 {[%clk
01:06:54]} {[%emt 00:04:22]} c6 {[%clk 01:17:56]} {[%emt 00:04:09]} 18. Na7
{[%clk 01:00:44]} {[%emt 00:06:41]} Qa8 {[%clk 01:17:48]} {[%emt 00:00:39]} 0-1

[Event "2. Itzehoer Schach Open"]
[Site "Itzehoe, Germany"]
[Date "2023.04.29"]
[Round "1.23"]
[White "Aguike, Toshiya"]
[Black "Wolf, Finn"]
[Result "0-1"]
[TimeControl "90 min / 40 Züge + 30 min + 30 Sek pro Zug"]
[WhiteElo "1491"]
[BlackElo "1677"]

1. e4 {[%clk 01:30:57]} {[%emt 00:00:02]} c5 {[%clk 01:30:50]} {[%emt
00:00:11]} 2. Nf3 {[%clk 01:31:20]} {[%emt 00:00:08]} d6 {[%clk 01:31:13]}
{[%emt 00:00:07]} 3. d4 {[%clk 01:31:44]} {[%emt 00:00:06]} cxd4 {[%clk
01:31:37]} {[%emt 00:00:05]} 4. Nxd4 {[%clk 01:32:01]} {[%emt 00:00:13]} Nf6
{[%clk 01:32:01]} {[%emt 00:00:06]} 5. Nc3 {[%clk 01:32:18]} {[%emt 00:00:13]}
a6 {[%clk 01:32:07]} {[%emt 00:00:24]} 6. Bc4 {[%clk 01:32:42]} {[%emt
00:00:06]} e6 {[%clk 01:32:28]} {[%emt 00:00:10]} 7. a3 {[%clk 01:33:02]}
{[%emt 00:00:10]} Be7 {[%clk 01:28:59]} {[%emt 00:03:56]} 8. Be3 {[%clk
01:32:57]} {[%emt 00:00:37]} Qc7 {[%clk 01:26:31]} {[%emt 00:02:57]} 9. Ba2
{[%clk 01:32:56]} {[%emt 00:00:33]} Nc6 {[%clk 01:24:00]} {[%emt 00:02:58]} 10.
Nf3 {[%clk 01:32:49]} {[%emt 00:00:39]} b5 {[%clk 01:22:15]} {[%emt 00:02:15]}
11. b4 {[%clk 01:30:38]} {[%emt 00:02:41]} Nxb4 {[%clk 01:12:11]} {[%emt
00:10:35]} 12. Qd2 {[%clk 01:27:08]} {[%emt 00:03:59]} Nxa2 {[%clk 01:09:55]}
{[%emt 00:02:46]} 13. Rxa2 {[%clk 01:27:26]} {[%emt 00:00:12]} Bb7 {[%clk
01:07:44]} {[%emt 00:02:38]} 14. Qd3 {[%clk 01:25:33]} {[%emt 00:02:26]} Rc8
{[%clk 01:05:41]} {[%emt 00:02:33]} 15. Bd2 {[%clk 01:24:06]} {[%emt 00:01:56]}
e5 {[%clk 00:56:30]} {[%emt 00:09:41]} 16. O-O {[%clk 01:20:21]} {[%emt
00:04:15]} O-O {[%clk 00:54:43]} {[%emt 00:02:17]} 17. Re1 {[%clk 01:17:54]}
{[%emt 00:02:57]} h6 {[%clk 00:53:22]} {[%emt 00:01:51]} 18. g3 {[%clk
01:17:30]} {[%emt 00:00:55]} Rfd8 {[%clk 00:50:17]} {[%emt 00:03:34]} 19. Nh4
{[%clk 01:17:05]} {[%emt 00:00:56]} d5 {[%clk 00:48:39]} {[%emt 00:02:09]} 20.
exd5 {[%clk 01:16:28]} {[%emt 00:01:06]} Nxd5 {[%clk 00:47:41]} {[%emt
00:01:27]} 21. Nxd5 {[%clk 01:16:22]} {[%emt 00:00:36]} Bxd5 {[%clk 00:46:06]}
{[%emt 00:02:06]} 22. Rb2 {[%clk 01:16:16]} {[%emt 00:00:35]} Bc4 {[%clk
00:43:14]} {[%emt 00:03:23]} 23. Qe3 {[%clk 01:16:24]} {[%emt 00:00:21]} Bc5
{[%clk 00:42:34]} {[%emt 00:01:11]} 24. Qf3 {[%clk 01:12:02]} {[%emt 00:04:51]}
Rxd2 {[%clk 00:41:56]} {[%emt 00:01:09]} 25. Nf5 {[%clk 01:11:31]} {[%emt
00:01:01]} Rxf2 {[%clk 00:38:16]} {[%emt 00:04:10]} 0-1

[Event "2. Itzehoer Schach Open"]
[Site "Itzehoe, Germany"]
[Date "2023.04.29"]
[Round "1.5"]
[White "Richter, Ruediger"]
[Black "Wulf von Moers, Jens"]
[Result "0-1"]
[TimeControl "90 min / 40 Züge + 30 min + 30 Sek pro Zug"]
[WhiteElo "1869"]
[BlackElo "2148"]

1. e4 {[%clk 01:30:54]} {[%emt 00:00:05]} d6 {[%clk 01:30:50]} {[%emt
00:00:11]} 2. d4 {[%clk 01:31:11]} {[%emt 00:00:13]} Nf6 {[%clk 01:31:13]}
{[%emt 00:00:06]} 3. Nc3 {[%clk 01:31:30]} {[%emt 00:00:12]} e5 {[%clk
01:31:31]} {[%emt 00:00:11]} 4. dxe5 {[%clk 01:29:02]} {[%emt 00:02:59]} dxe5
{[%clk 01:31:53]} {[%emt 00:00:08]} 5. Qxd8+ {[%clk 01:28:29]} {[%emt
00:01:03]} Kxd8 {[%clk 01:32:10]} {[%emt 00:00:11]} 6. Bg5 {[%clk 01:26:38]}
{[%emt 00:02:23]} Be6 {[%clk 01:32:14]} {[%emt 00:00:27]} 7. O-O-O+ {[%clk
01:25:33]} {[%emt 00:01:35]} Nbd7 {[%clk 01:32:22]} {[%emt 00:00:21]} 8. f4
{[%clk 01:21:01]} {[%emt 00:05:03]} exf4 {[%clk 01:31:35]} {[%emt 00:01:17]} 9.
Nge2 {[%clk 01:12:55]} {[%emt 00:08:36]} Bc5 {[%clk 01:16:39]} {[%emt
00:15:25]} 10. Nxf4 {[%clk 01:06:22]} {[%emt 00:07:03]} Kc8 {[%clk 01:11:01]}
{[%emt 00:06:08]} 11. Nxe6 {[%clk 01:03:22]} {[%emt 00:03:31]} fxe6 {[%clk
01:11:20]} {[%emt 00:00:11]} 12. Bc4 {[%clk 01:00:18]} {[%emt 00:03:35]} Re8
{[%clk 01:11:13]} {[%emt 00:00:35]} 13. h3 {[%clk 00:48:15]} {[%emt 00:12:34]}
a6 {[%clk 01:02:44]} {[%emt 00:08:59]} 14. a3 {[%clk 00:44:11]} {[%emt
00:04:35]} b5 {[%clk 00:45:31]} {[%emt 00:17:42]} 15. Be2 {[%clk 00:40:48]}
{[%emt 00:03:53]} Bd6 {[%clk 00:35:48]} {[%emt 00:10:13]} 16. Be3 {[%clk
00:37:59]} {[%emt 00:03:17]} Be5 {[%clk 00:34:01]} {[%emt 00:02:19]} 17. Bd4
{[%clk 00:35:47]} {[%emt 00:02:41]} c6 {[%clk 00:32:16]} {[%emt 00:02:15]} 18.
Rhf1 {[%clk 00:35:11]} {[%emt 00:01:07]} Kc7 {[%clk 00:31:51]} {[%emt
00:00:54]} 19. g4 {[%clk 00:34:54]} {[%emt 00:00:48]} Bxd4 {[%clk 00:27:37]}
{[%emt 00:04:44]} 20. Rxd4 {[%clk 00:35:21]} {[%emt 00:00:03]} Ne5 {[%clk
00:27:53]} {[%emt 00:00:13]} 21. b4 {[%clk 00:32:55]} {[%emt 00:02:56]} Rf8
{[%clk 00:22:32]} {[%emt 00:05:51]} 22. Rdd1 {[%clk 00:21:30]} {[%emt
00:11:56]} h6 {[%clk 00:21:22]} {[%emt 00:01:39]} 23. Kd2 {[%clk 00:21:28]}
{[%emt 00:00:32]} Rad8+ {[%clk 00:21:16]} {[%emt 00:00:36]} 24. Ke3 {[%clk
00:21:25]} {[%emt 00:00:33]} Rxd1 {[%clk 00:20:13]} {[%emt 00:01:34]} 25. Nxd1
{[%clk 00:20:14]} {[%emt 00:01:42]} a5 {[%clk 00:17:47]} {[%emt 00:02:55]} 26.
c4 {[%clk 00:13:25]} {[%emt 00:07:18]} axb4 {[%clk 00:17:32]} {[%emt 00:00:46]}
27. axb4 {[%clk 00:13:44]} {[%emt 00:00:11]} bxc4 {[%clk 00:17:32]} {[%emt
00:00:30]} 28. Kd4 {[%clk 00:13:49]} {[%emt 00:00:24]} Kd6 {[%clk 00:16:27]}
{[%emt 00:01:36]} 29. Bxc4 {[%emt 00:03:06]} Rb8 {[%clk 00:16:02]} 30. Ne3
{[%clk 00:08:47]} {[%emt 00:03:52]} Rxb4 {[%clk 00:15:51]} {[%emt 00:00:39]} 31.
Rd1 {[%clk 00:09:06]} {[%emt 00:00:11]} c5+ {[%clk 00:15:45]} {[%emt 00:00:37]}
32. Kc3+ {[%clk 00:09:28]} {[%emt 00:00:08]} Ke7 {[%clk 00:16:06]} {[%emt
00:00:08]} 33. Bf1 {[%clk 00:07:14]} {[%emt 00:02:45]} Nxe4+ {[%clk 00:15:44]}
{[%emt 00:00:52]} 34. Kc2 {[%clk 00:07:27]} {[%emt 00:00:16]} Nc6 {[%clk
00:15:33]} {[%emt 00:00:41]} 35. Ra1 {[%clk 00:06:11]} {[%emt 00:01:47]} Nd4+
{[%clk 00:14:28]} {[%emt 00:01:34]} 36. Kd3 {[%clk 00:06:21]} {[%emt 00:00:21]}
Nf2+ {[%clk 00:13:21]} {[%emt 00:01:37]} 37. Kc3 {[%clk 00:05:20]} {[%emt
00:01:32]} Rb3+ {[%clk 00:13:27]} {[%emt 00:00:22]} 38. Kc4 {[%clk 00:05:22]}
{[%emt 00:00:29]} Rxe3 {[%clk 00:13:39]} {[%emt 00:00:17]} 39. Ra7+ {[%clk
00:05:36]} {[%emt 00:00:17]} Kf6 {[%clk 00:13:11]} {[%emt 00:00:58]} 40. Kxc5
{[%clk 00:05:45]} {[%emt 00:00:21]} Nb3+ {[%clk 00:12:43]} {[%emt 00:00:57]} 41.
Kb4 {[%clk 00:05:31]} {[%emt 00:00:45]} Nd2 {[%clk 00:10:48]} {[%emt 00:02:25]}
42. Ra2 {[%clk 00:04:48]} {[%emt 00:01:14]} Nde4 {[%clk 00:10:06]} {[%emt
00:01:10]} 43. Bg2 {[%clk 00:04:35]} {[%emt 00:00:43]} Rg3 {[%clk 00:09:53]}
{[%emt 00:00:42]} 0-1

[Event "2. Itzehoer Schach Open"]
[Site "Itzehoe, Germany"]
[Date "2023.04.29"]
[Round "1.36"]
[White "Schindehuette, Frank"]
[Black "Junge, Julia Marie"]
[Result "1/2-1/2"]
[TimeControl "90 min / 40 Züge + 30 min + 30 Sek pro Zug"]
[WhiteElo "1575"]
[BlackElo "1367"]

1. f4 {[%clk 01:30:57]} {[%emt 00:00:03]} Nc6 {[%clk 01:24:51]} {[%emt
00:06:10]} 2. c4 {[%clk 01:31:19]} {[%emt 00:00:07]} e5 {[%clk 01:24:36]}
{[%emt 00:00:46]} 3. Nc3 {[%clk 01:31:05]} {[%emt 00:00:44]} Bc5 {[%clk
01:22:36]} {[%emt 00:02:30]} 4. Nf3 {[%clk 01:31:13]} {[%emt 00:00:22]} d6
{[%clk 01:21:26]} {[%emt 00:01:40]} 5. e4 {[%clk 01:30:15]} {[%emt 00:01:27]}
Bg4 {[%clk 01:17:55]} {[%emt 00:04:02]} 6. Be2 {[%clk 01:29:47]} {[%emt
00:00:58]} Qd7 {[%clk 01:15:59]} {[%emt 00:02:25]} 7. f5 {[%clk 01:20:32]}
{[%emt 00:09:45]} Bxf3 {[%clk 01:11:21]} {[%emt 00:05:08]} 8. Bxf3 {[%clk
01:20:50]} {[%emt 00:00:12]} O-O-O {[%clk 01:11:00]} {[%emt 00:00:51]} 9. d3
{[%clk 01:18:54]} {[%emt 00:02:26]} f6 {[%clk 01:10:33]} {[%emt 00:00:58]} 10.
a3 {[%clk 01:11:35]} {[%emt 00:07:49]} a5 {[%clk 01:06:45]} {[%emt 00:04:17]}
11. Bd2 {[%clk 01:08:13]} {[%emt 00:03:53]} b6 {[%clk 01:03:08]} {[%emt
00:04:08]} 12. Nd5 {[%clk 01:03:10]} {[%emt 00:05:32]} Nge7 {[%clk 01:01:44]}
{[%emt 00:01:54]} 13. b4 {[%clk 00:59:07]} {[%emt 00:04:34]} Bd4 {[%clk
01:00:08]} {[%emt 00:02:06]} 14. Rb1 {[%clk 00:56:24]} {[%emt 00:03:12]} axb4
{[%clk 00:57:53]} {[%emt 00:02:46]} 15. axb4 {[%clk 00:54:39]} {[%emt
00:02:16]} Nxd5 {[%clk 00:54:21]} {[%emt 00:04:02]} 16. cxd5 {[%clk 00:54:54]}
{[%emt 00:00:15]} Na7 {[%clk 00:52:42]} {[%emt 00:02:08]} 17. Qc1 {[%clk
00:51:01]} {[%emt 00:04:23]} Qb5 {[%clk 00:50:49]} {[%emt 00:02:24]} 18. Ke2
{[%clk 00:46:35]} {[%emt 00:04:55]} c6 {[%clk 00:48:15]} {[%emt 00:03:04]} 19.
Qc2 {[%clk 00:40:16]} {[%emt 00:06:49]} Kb7 {[%clk 00:46:21]} {[%emt 00:02:24]}
20. Rhc1 {[%clk 00:39:40]} {[%emt 00:01:04]} Rc8 {[%clk 00:45:08]} {[%emt
00:01:45]} 21. Qa2 {[%clk 00:33:18]} {[%emt 00:06:51]} cxd5 {[%clk 00:44:02]}
{[%emt 00:01:36]} 22. Qxd5+ {[%clk 00:32:14]} {[%emt 00:01:34]} Qxd5 {[%clk
00:44:18]} {[%emt 00:00:14]} 23. exd5 {[%clk 00:32:38]} {[%emt 00:00:07]} b5
{[%clk 00:42:33]} {[%emt 00:02:15]} 24. Be3 {[%clk 00:32:00]} {[%emt 00:01:07]}
Bxe3 {[%clk 00:42:36]} {[%emt 00:00:27]} 25. Kxe3 {[%clk 00:32:24]} {[%emt
00:00:06]} Rxc1 {[%emt 00:00:57]} 26. Rxc1 {[%clk 00:32:45]} Rc8 {[%clk
00:42:31]} {[%emt 00:00:17]} 27. Rxc8 {[%clk 00:31:09]} {[%emt 00:02:06]} Kxc8
{[%clk 00:42:11]} {[%emt 00:00:49]} 28. Bh5 {[%clk 00:29:36]} {[%emt 00:02:03]}
Kd7 {[%clk 00:40:48]} {[%emt 00:01:54]} 29. d4 {[%clk 00:29:32]} {[%emt
00:00:34]} Nc8 {[%clk 00:39:58]} {[%emt 00:01:20]} 30. Be2 {[%clk 00:27:56]}
{[%emt 00:02:05]} Na7 {[%clk 00:39:21]} {[%emt 00:01:07]} 31. g4 {[%clk
00:26:59]} {[%emt 00:01:27]} g6 {[%clk 00:38:27]} {[%emt 00:01:25]} 32. fxg6
{[%clk 00:25:30]} {[%emt 00:01:59]} hxg6 {[%clk 00:38:44]} {[%emt 00:00:12]} 33.
h4 {[%clk 00:25:32]} {[%emt 00:00:29]} Ke7 {[%clk 00:38:23]} {[%emt 00:00:51]}
34. Bd3 {[%clk 00:25:30]} {[%emt 00:00:32]} Kf7 {[%clk 00:37:45]} {[%emt
00:01:07]} 35. dxe5 {[%clk 00:24:31]} {[%emt 00:01:29]} fxe5 {[%clk 00:36:35]}
{[%emt 00:01:41]} 36. h5 {[%clk 00:24:07]} {[%emt 00:00:54]} gxh5 {[%clk
00:36:38]} {[%emt 00:00:26]} 37. gxh5 {[%clk 00:24:12]} {[%emt 00:00:25]} Kg7
{[%clk 00:35:49]} {[%emt 00:01:19]} 38. Kf3 {[%clk 00:21:48]} {[%emt 00:02:50]}
Kh6 {[%clk 00:35:02]} {[%emt 00:01:21]} 39. Kg4 {[%clk 00:22:10]} {[%emt
00:00:07]} Nc8 {[%clk 00:33:34]} {[%emt 00:01:59]} 40. Bxb5 {[%clk 00:22:29]}
{[%emt 00:00:11]} Nb6 {[%clk 00:33:56]} {[%emt 00:00:08]} 41. Bc6 {[%clk
00:22:35]} {[%emt 00:00:23]} e4 {[%clk 00:33:47]} {[%emt 00:00:39]} 42. Kf4
{[%clk 00:22:26]} {[%emt 00:00:39]} e3 {[%clk 00:33:59]} {[%emt 00:00:18]} 43.
Kxe3 {[%clk 00:22:38]} {[%emt 00:00:17]} Kxh5 {[%clk 00:34:24]} {[%emt
00:00:06]} 44. Kf4 {[%clk 00:21:14]} {[%emt 00:01:54]} Kg6 {[%clk 00:34:35]}
{[%emt 00:00:19]} 45. Ke4 {[%clk 00:20:25]} {[%emt 00:01:18]} Kf6 {[%clk
00:34:21]} {[%emt 00:00:44]} 46. b5 {[%clk 00:19:38]} {[%emt 00:01:17]} Ke5+
{[%emt 00:08:20]} 1/2-1/2

[Event "2. Itzehoer Schach Open"]
[Site "Itzehoe, Germany"]
[Date "2023.04.29"]
[Round "1.4"]
[White "Lichtmannecker, Daniel"]
[Black "Quiring, Nikolai"]
[Result "1-0"]
[TimeControl "90 min / 40 Züge + 30 min + 30 Sek pro Zug"]
[WhiteElo "2162"]
[BlackElo "1880"]

1. d4 {[%clk 01:26:00]} {[%emt 00:04:59]} e6 {[%clk 01:30:57]} {[%emt
00:00:03]} 2. Nc3 {[%clk 01:26:18]} {[%emt 00:00:12]} b6 {[%clk 01:30:47]}
{[%emt 00:00:40]} 3. e4 {[%clk 01:26:38]} {[%emt 00:00:10]} Bb7 {[%clk
01:30:28]} {[%emt 00:00:49]} 4. Bd3 {[%clk 01:26:55]} {[%emt 00:00:13]} f5
{[%clk 01:28:37]} {[%emt 00:02:21]} 5. exf5 {[%clk 01:26:57]} {[%emt 00:00:29]}
exf5 {[%clk 01:26:18]} {[%emt 00:02:48]} 6. Bxf5 {[%clk 01:15:08]} {[%emt
00:12:19]} g6 {[%clk 01:22:26]} {[%emt 00:04:21]} 7. Be4 {[%clk 01:13:01]}
{[%emt 00:02:37]} d5 {[%clk 01:20:36]} {[%emt 00:02:20]} 8. Bf3 {[%clk
01:12:53]} {[%emt 00:00:39]} Bg7 {[%clk 01:15:51]} {[%emt 00:05:15]} 9. Qe2+
{[%clk 01:01:35]} {[%emt 00:11:48]} Kf7 {[%clk 01:09:23]} {[%emt 00:06:57]} 10.
Nh3 {[%clk 00:59:22]} {[%emt 00:02:44]} Ne7 {[%clk 01:01:30]} {[%emt 00:08:23]}
11. Ng5+ {[%clk 00:59:06]} {[%emt 00:00:46]} 1-0